bitfinex/quotes_BTCUSD_20260104
["timestamp","ask_amount","ask_price","bid_price","bid_amount"]
[1767542654142,0.01095074,91318.0,91312.0,0.01095146]
[1767542654343,0.01095086,91317.0,91311.0,0.01095158]
[1767542655117,0.01095098,91316.0,91310.0,0.06571019]
[1767542655484,0.01095098,91316.0,91310.0,0.0109517]
[1767542655664,0.0109511,91315.0,91310.0,0.04538949]
[1767542656066,0.06570605,91316.0,91310.0,0.04538949]
[1767542656562,0.0109511,91315.0,91310.0,0.04538949]
[1767542656788,0.05475735,91312.0,91310.0,0.04538949]
[1767542657163,0.01095134,91313.0,91310.0,0.04538949]
[1767542657362,0.06570734,91314.0,91310.0,0.04538949]
[1767542657884,0.09530962,91315.0,91310.0,0.04538949]
[1767542658082,0.01095122,91314.0,91310.0,0.04538949]
[1767542658236,0.06570664,91315.0,91310.0,0.04538949]
[1767542658439,0.01095122,91314.0,91310.0,0.04538949]
[1767542658865,0.0109511,91315.0,91310.0,0.04538949]
[1767542659127,0.065707,91316.0,91310.0,0.05634119]
[1767542659411,0.0109511,91315.0,91310.0,0.04538949]
[1767542659610,0.065707,91316.0,91310.0,0.04538949]
[1767542659783,0.06570667,91315.0,91310.0,0.04538949]
[1767542659995,0.06570738,91314.0,91310.0,0.04538949]
[1767542660230,0.01095122,91314.0,91310.0,0.04538949]
[1767542660451,0.06571152,91309.0,91306.0,0.04558802]
[1767542660734,0.01095182,91309.0,91306.0,0.04558802]
[1767542660915,0.06571029,91310.0,91306.0,0.04558802]
[1767542661166,0.04499096,91308.0,91303.0,0.01095254]
[1767542661366,0.02192,91311.0,91305.0,0.05634179]
[1767542661486,0.03287158,91311.0,91306.0,0.04538949]
[1767542661684,0.02192,91311.0,91306.0,0.05634167]
[1767542662092,0.21900506,91323.0,91306.0,0.05634167]
[1767542662093,0.01094726,91347.0,91338.0,0.04538949]
[1767542662293,7.878e-05,91347.0,91339.0,0.04538949]
[1767542662587,7.878e-05,91347.0,91343.0,0.05633723]
[1767542662790,0.04376,91355.0,91350.0,0.04538949]
[1767542662921,0.06567353,91361.0,91351.0,0.01094678]
[1767542663130,0.0766657,91360.0,91353.0,0.01094654]
[1767542663339,0.04734326,91357.0,91350.0,0.0109469]
[1767542663508,0.04734326,91357.0,91349.0,0.02662857]
[1767542663882,0.04734326,91357.0,91350.0,0.0109469]
[1767542664026,0.01320117,91355.0,91350.0,0.0109469]
[1767542664386,0.01320117,91355.0,91351.0,0.01094678]
[1767542664595,0.01320117,91350.0,91342.0,0.01094786]
[1767542664808,0.01320117,91348.0,91342.0,0.01102664]
[1767542665015,0.01320117,91348.0,91342.0,0.06576589]
[1767542665223,0.01320117,91348.0,91342.0,0.01102664]
[1767542665510,0.01320117,91348.0,91343.0,0.01094774]
[1767542665752,0.01320117,91348.0,91344.0,0.01094762]
[1767542665917,0.02196,91349.0,91345.0,0.04538949]
[1767542667293,0.01320117,91348.0,91343.0,0.06343283]
[1767542667505,0.01320117,91348.0,91343.0,0.01094774]
[1767542668007,0.01320117,91348.0,91342.0,0.06576564]
[1767542668422,0.01320117,91348.0,91343.0,0.01094774]
[1767542668624,0.01320117,91348.0,91344.0,0.01144072]
[1767542669275,0.01220117,91348.0,91345.0,0.0109475]
[1767542669480,0.02196,91347.0,91345.0,0.06568503]
[1767542670037,0.04376,91352.0,91347.0,0.01094726]
[1767542670185,0.02196,91351.0,91348.0,0.01094714]
[1767542670366,0.02196,91351.0,91347.0,0.06568355]
[1767542670367,0.06567785,91355.0,91347.0,0.06568355]
[1767542670602,0.01094642,91354.0,91347.0,0.06568355]
[1767542670804,0.06567785,91355.0,91348.0,0.01094714]
[1767542671016,0.06567947,91353.0,91346.0,0.01094738]
[1767542671220,0.01094654,91353.0,91346.0,0.01094738]
[1767542671562,0.0109463,91355.0,91347.0,0.01094726]
[1767542671788,0.06572,91352.0,91347.0,0.01094726]
[1767542671988,0.02196,91351.0,91346.0,0.01094738]
[1767542672412,0.02192,91350.0,91345.0,0.35363108]
[1767542672619,0.05470666,91352.0,91350.0,0.04777864]
[1767542672825,0.01094642,91354.0,91350.0,0.0467334]
[1767542673050,0.02196524,91352.0,91347.0,0.01094726]
[1767542673251,0.02196524,91351.0,91347.0,0.01094726]
[1767542673446,0.02196524,91349.0,91346.0,0.01094738]
[1767542673676,0.02096524,91349.0,91346.0,0.01094738]
[1767542674196,0.02192,91348.0,91346.0,0.01094738]
[1767542674395,0.02192,91347.0,91346.0,0.01094738]
[1767542674615,0.01094654,91353.0,91346.0,0.06568431]
[1767542674817,0.01094642,91354.0,91348.0,0.04536206]
[1767542675190,0.02192,91353.0,91349.0,0.05630908]
[1767542675398,0.02192,91353.0,91349.0,0.04536206]
[1767542675608,0.02192,91353.0,91349.0,0.05630908]
[1767542675843,0.02187199,91353.0,91349.0,0.04536206]
[1767542676477,0.02187199,91353.0,91349.0,0.04436206]
[1767542676689,0.14261223,91352.0,91344.0,0.04585516]
[1767542676901,0.06568147,91350.0,91344.0,0.04585516]
[1767542677108,0.06568224,91349.0,91344.0,0.04585516]
[1767542677341,0.01094726,91347.0,91344.0,0.04585516]
[1767542677758,0.0656815,91350.0,91345.0,0.04536206]
[1767542677959,0.01094714,91348.0,91345.0,0.04536206]
[1767542678161,0.08760237,91349.0,91345.0,0.04536206]
[1767542678571,0.02192,91348.0,91345.0,0.04536206]
[1767542678775,0.05473173,91355.0,91348.0,0.04536206]
[1767542678981,0.10943807,91355.0,91354.0,0.04536206]
[1767542679190,0.13135807,91355.0,91354.0,0.04536206]
[1767542679401,0.06568,91355.0,91348.0,0.04536206]
[1767542679833,0.01094642,91354.0,91348.0,0.04536206]
[1767542680854,0.01094654,91353.0,91348.0,0.04536206]
[1767542681092,0.01094678,91351.0,91348.0,0.04536206]
[1767542682208,0.06568095,91351.0,91348.0,0.04536206]
[1767542682953,0.05473466,91350.0,91348.0,0.04536206]
[1767542683358,0.06568095,91351.0,91348.0,0.04536206]
[1767542683937,0.06568095,91351.0,91343.0,0.0563098]
[1767542684139,0.01094702,91349.0,91343.0,0.04536206]
[1767542684340,0.03286714,91348.0,91343.0,0.04536206]
[1767542684861,0.03286714,91348.0,91341.0,0.01094798]
[1767542685115,0.01094738,91346.0,91339.0,0.35368886]
[1767542685368,0.02202797,91348.0,91340.0,0.06568862]
[1767542685644,0.01094726,91347.0,91340.0,0.0109481]
[1767542685807,0.0109475,91345.0,91332.0,0.05631112]
[1767542686172,0.0451414,91342.0,91335.0,0.06569199]
[1767542686313,0.0451414,91340.0,91336.0,0.01094858]
[1767542686514,0.0441414,91340.0,91336.0,0.01094858]
[1767542686980,0.0441414,91340.0,91335.0,0.06569199]
[1767542687205,0.0441414,91340.0,91336.0,0.01094858]
[1767542687408,0.0441414,91340.0,91335.0,0.0109487]
[1767542687570,0.0441414,91340.0,91337.0,0.01094846]
[1767542687774,0.0441414,91340.0,91337.0,0.0656904]
[1767542687972,0.0441414,91340.0,91336.0,0.0656915]
[1767542688201,0.0441414,91340.0,91336.0,0.01094858]
[1767542688954,0.0441414,91340.0,91337.0,0.06569078]
[1767542689483,0.02192,91341.0,91337.0,0.06569078]
[1767542689484,0.02192,91341.0,91338.0,0.01094834]
[1767542689683,0.02192,91341.0,91338.0,0.06568947]
[1767542690295,0.02192,91341.0,91339.0,0.05474054]
[1767542691095,0.02192,91341.0,91338.0,0.06569003]
[1767542691314,0.02192,91341.0,91338.0,0.01094834]
[1767542692127,0.02192,91341.0,91338.0,0.06569]
[1767542693335,0.02192,91341.0,91337.0,0.06569074]
[1767542693537,0.001,91338.0,91337.0,0.06569074]
[1767542693738,0.0670614,91341.0,91338.0,0.01094834]
[1767542694064,0.0451414,91340.0,91337.0,0.06569074]
[1767542694402,0.03148456,91340.0,91339.0,0.05474112]
[1767542694609,0.02192,91341.0,91340.0,0.05474052]
[1767542695012,0.00010797,91348.0,91347.0,0.05473633]
[1767542695240,0.0219392,91348.0,91344.0,0.06568524]
[1767542695438,0.0670806,91348.0,91345.0,0.06568502]
[1767542695640,0.0670806,91348.0,91345.0,0.0109475]
[1767542695837,0.0219392,91348.0,91345.0,0.06568485]
[1767542696061,0.02192,91347.0,91345.0,0.06568485]
[1767542696589,1.92e-05,91348.0,91345.0,0.06568485]
[1767542696773,0.02192,91346.0,91345.0,0.06568485]
[1767542696993,0.02186355,91346.0,91345.0,0.06568485]
[1767542697386,1.92e-05,91348.0,91345.0,0.06568485]
[1767542697387,1.92e-05,91348.0,91346.0,0.04871388]
[1767542697746,1.92e-05,91348.0,91347.0,0.04871388]
[1767542698146,0.0219392,91348.0,91347.0,0.04871388]
[1767542698349,1.92e-05,91348.0,91347.0,0.05473633]
[1767542698688,0.0219392,91348.0,91347.0,0.10345021]
[1767542698888,0.0219392,91348.0,91347.0,0.04871388]
[1767542699594,0.01781459,91348.0,91346.0,0.04871388]
[1767542699772,0.0137555,91348.0,91346.0,0.04871388]
[1767542700153,0.0137555,91348.0,91347.0,0.04871388]
[1767542700673,0.0137555,91348.0,91347.0,0.04771388]
[1767542701028,0.00049308,91351.0,91348.0,0.04768984]
[1767542701238,0.04794965,91350.0,91348.0,0.001]
[1767542701467,0.05472635,91364.0,91352.0,0.01094666]
[1767542701678,0.04794965,91365.0,91357.0,0.01094606]
[1767542701883,0.02192,91364.0,91360.0,0.0109457]
[1767542702087,0.06986965,91364.0,91360.0,0.0109457]
[1767542702296,0.04794965,91363.0,91360.0,0.0109457]
[1767542702498,0.04794965,91363.0,91360.0,0.06567364]
[1767542702699,0.04694965,91363.0,91360.0,0.0109457]
[1767542703057,0.04694965,91363.0,91360.0,0.06567392]
[1767542703260,0.04694965,91363.0,91361.0,0.05472785]
[1767542704439,0.02187973,91364.0,91361.0,0.06567343]
[1767542704706,0.0218312,91364.0,91361.0,0.06567343]
[1767542704955,0.02165359,91364.0,91361.0,0.06567343]
[1767542705124,0.02165359,91364.0,91360.0,0.06567392]
[1767542705330,0.02165359,91364.0,91361.0,0.05863542]
[1767542705561,0.02165359,91364.0,91361.0,0.05763542]
[1767542706330,0.02165359,91364.0,91361.0,0.00994558]
[1767542706705,0.02165359,91364.0,91361.0,0.05763542]
[1767542706911,0.02065359,91364.0,91361.0,0.05763542]
[1767542707115,0.02065359,91364.0,91363.0,0.05472674]
[1767542707387,0.02065359,91364.0,91362.0,0.05472734]
[1767542707590,0.02065359,91364.0,91362.0,0.0546821]
[1767542707928,0.02065359,91364.0,91362.0,0.10237194]
[1767542708543,0.02192,91366.0,91365.0,0.01094511]
[1767542708771,0.0609356,91366.0,91365.0,0.01094511]
[1767542709136,0.02192,91368.0,91366.0,0.05863483]
[1767542709304,0.02192,91368.0,91367.0,0.04768984]
[1767542709499,0.02192,91368.0,91367.0,0.04668984]
[1767542709702,0.02192,91368.0,91365.0,0.01094511]
[1767542709859,0.02192,91368.0,91365.0,0.0656705]
[1767542709860,0.04694965,91367.0,91365.0,0.0656705]
[1767542710066,0.02192,91368.0,91365.0,0.0656705]
[1767542710268,0.02192,91368.0,91364.0,0.01094523]
[1767542710467,0.02192,91368.0,91365.0,0.01094511]
[1767542710785,0.02192,91368.0,91365.0,0.0656701]
[1767542711220,0.02192,91368.0,91365.0,0.01094511]
[1767542711365,0.02192,91368.0,91365.0,0.06567046]
[1767542711571,0.02192,91368.0,91366.0,0.05372488]
[1767542711965,0.02192,91368.0,91367.0,0.05472435]
[1767542712164,0.02092,91368.0,91367.0,0.05472435]
[1767542712434,4.056e-05,91371.0,91368.0,0.06566829]
[1767542712650,4.056e-05,91371.0,91368.0,0.01094475]
[1767542713001,4.056e-05,91371.0,91370.0,0.05472255]
[1767542713199,4.056e-05,91371.0,91370.0,0.04768984]
[1767542713397,0.0014512,91374.0,91371.0,0.05863423]
[1767542713598,0.0014512,91374.0,91372.0,0.0476446]
[1767542713987,0.0014512,91374.0,91372.0,0.0466446]
[1767542714343,0.00154972,91374.0,91372.0,0.0466446]
[1767542714682,0.00054972,91374.0,91371.0,0.06566631]
[1767542714886,0.00054972,91374.0,91372.0,0.04768984]
[1767542715239,0.04794965,91373.0,91369.0,0.01094463]
[1767542715386,0.04794965,91373.0,91370.0,0.01094451]
[1767542715588,0.04794965,91373.0,91369.0,0.01094463]
[1767542715795,0.04894965,91370.0,91369.0,0.01094463]
[1767542716261,0.04894965,91370.0,91365.0,0.01094511]
[1767542716450,0.04894965,91370.0,91367.0,0.01094487]
[1767542716648,0.04794965,91370.0,91367.0,0.06566917]
[1767542716848,0.04794965,91370.0,91368.0,0.05472353]
[1767542718023,0.001,91368.0,91367.0,0.01094487]
[1767542718199,0.04794965,91370.0,91367.0,0.06566866]
[1767542719063,0.04794965,91370.0,91369.0,0.05472315]
[1767542719265,0.04794965,91370.0,91366.0,0.01094499]
[1767542719778,0.04794965,91370.0,91369.0,0.05472315]
[1767542720179,0.00054972,91374.0,91370.0,0.01094451]
[1767542720390,0.01094379,91376.0,91374.0,0.04768984]
[1767542720760,0.01094367,91377.0,91374.0,0.04768984]
[1767542720960,0.01094367,91377.0,91374.0,0.0476446]
[1767542721787,0.06566216,91377.0,91374.0,0.0476446]
[1767542722482,0.01094367,91377.0,91374.0,0.0476446]
[1767542723062,0.02192,91378.0,91374.0,0.0476446]
[1767542723213,0.03286355,91378.0,91374.0,0.0476446]
[1767542723591,0.02192,91378.0,91374.0,0.0476446]
[1767542724240,0.03286355,91378.0,91374.0,0.0476446]
[1767542724443,0.02192,91378.0,91374.0,0.0476446]
[1767542724653,0.02092,91378.0,91374.0,0.04768984]
[1767542725051,0.01094343,91379.0,91374.0,0.04768984]
[1767542725268,0.01094355,91378.0,91374.0,0.04768984]
[1767542725479,0.08757988,91380.0,91374.0,0.04768984]
[1767542725890,0.01094355,91378.0,91374.0,0.04768984]
[1767542726100,0.01094343,91379.0,91374.0,0.04768984]
[1767542726314,0.01094295,91383.0,91380.0,0.04768984]
[1767542726520,0.05471596,91381.0,91380.0,0.04768984]
[1767542726897,0.05471554,91382.0,91380.0,0.04668984]
[1767542727107,0.05471596,91381.0,91380.0,0.04668984]
[1767542728552,0.05889296,91380.0,91373.0,0.01094415]
[1767542728739,0.01094355,91378.0,91372.0,0.01094427]
[1767542728942,0.06566073,91379.0,91378.0,0.001]
[1767542729574,0.01094355,91378.0,91372.0,0.06566557]
[1767542729795,0.01094343,91379.0,91372.0,0.06566557]
[1767542729998,0.01094331,91380.0,91374.0,0.01094403]
[1767542730287,0.05471596,91381.0,91380.0,0.001]
[1767542730644,0.01094343,91379.0,91373.0,0.01094415]
[1767542731065,0.01094319,91381.0,91375.0,0.01094391]
[1767542731420,0.01094331,91380.0,91374.0,0.01094403]
[1767542731910,0.01094343,91379.0,91372.0,0.06566514]
[1767542732082,0.06565989,91380.0,91373.0,0.05769014]
[1767542732083,0.01094331,91380.0,91373.0,0.05769014]
[1767542732290,0.01094271,91385.0,91380.0,0.05774599]
[1767542732490,0.01094199,91391.0,91383.0,0.01094295]
[1767542732491,0.05471116,91390.0,91383.0,0.01094295]
[1767542732702,0.01094223,91389.0,91383.0,0.01094295]
[1767542733019,0.01094211,91390.0,91384.0,0.01094283]
[1767542733176,0.01094163,91394.0,91383.0,0.01094295]
[1767542733377,0.01094187,91392.0,91386.0,0.01094259]
[1767542733591,0.01094187,91392.0,91387.0,0.04674599]
[1767542733920,0.01103127,91397.0,91393.0,0.04674599]
[1767542734278,0.0657379,91397.0,91393.0,0.04674599]
[1767542734704,0.01094139,91396.0,91393.0,0.04674599]
[1767542734903,0.06564848,91396.0,91393.0,0.04674599]
[1767542735242,0.0109402,91406.0,91399.0,0.04703759]
[1767542735419,0.01094103,91399.0,91396.0,0.001]
[1767542735627,0.01094115,91398.0,91390.0,0.06565248]
[1767542735998,0.01094127,91397.0,91389.0,0.40072046]
[1767542736205,0.01094127,91397.0,91389.0,0.38977823]
[1767542736401,0.06565011,91394.0,91389.0,0.38977823]
[1767542736637,0.06565251,91391.0,91386.0,0.06895759]
[1767542737040,0.01094223,91389.0,91386.0,0.02192]
[1767542737272,0.06565199,91391.0,91389.0,0.00065614]
[1767542737868,0.01094199,91391.0,91389.0,0.00065614]
[1767542738134,0.01094187,91392.0,91389.0,0.00065614]
[1767542738998,0.05471047,91391.0,91389.0,0.00065614]
[1767542739329,0.05471008,91391.0,91389.0,0.00065614]
[1767542739475,0.01094211,91390.0,91386.0,0.02192]
[1767542739677,0.01094187,91392.0,91386.0,0.02192]
[1767542740077,0.01094187,91392.0,91383.0,0.01094295]
[1767542740078,0.01094187,91392.0,91383.0,0.06895759]
[1767542740290,0.01094187,91392.0,91385.0,0.01094271]
[1767542740843,0.01094199,91391.0,91385.0,0.01094271]
[1767542741047,0.01094103,91399.0,91391.0,0.01549316]
[1767542741281,0.01094151,91395.0,91391.0,0.00049762]
[1767542741492,0.01094163,91394.0,91385.0,0.35332432]
[1767542741707,0.0656502,91394.0,91386.0,0.06565498]
[1767542741910,0.01094199,91391.0,91385.0,0.34238161]
[1767542742135,0.26548779,91395.0,91378.0,0.21887085]
[1767542742136,0.01094247,91387.0,91380.0,0.36430161]
[1767542742515,0.01094247,91387.0,91380.0,0.02192]
[1767542742682,0.04665737,91386.0,91378.0,0.01094355]
[1767542742915,0.01094247,91387.0,91386.0,0.00052161]
[1767542743132,0.06565484,91387.0,91386.0,0.00052161]
[1767542743342,0.01094247,91387.0,91386.0,0.00052161]
[1767542743505,0.06565428,91388.0,91386.0,0.00052161]
[1767542743928,0.05471043,91391.0,91384.0,0.01094283]
[1767542744126,0.01094139,91396.0,91388.0,0.001]
[1767542744329,0.01094139,91396.0,91381.0,0.3894192]
[1767542744330,0.01094223,91389.0,91386.0,0.34238161]
[1767542744587,0.05759948,91390.0,91383.0,0.05471456]
[1767542744806,0.05759948,91390.0,91383.0,0.06565751]
[1767542744988,0.01094223,91389.0,91383.0,0.01094295]
[1767542745413,0.06565277,91390.0,91383.0,0.01094295]
[1767542746001,0.01094211,91390.0,91384.0,0.01094283]
[1767542746219,0.06565131,91392.0,91381.0,0.16441197]
[1767542746430,0.01094151,91395.0,91388.0,0.05471146]
[1767542746661,0.01094151,91395.0,91389.0,0.04703759]
[1767542746846,0.01094127,91397.0,91390.0,0.0579797]
[1767542746963,0.06564783,91397.0,91390.0,0.0579797]
[1767542747179,0.07662618,91398.0,91392.0,0.04703759]
[1767542747385,0.02192,91398.0,91395.0,0.04703759]
[1767542747587,0.02192,91398.0,91395.0,0.04675299]
[1767542748079,0.03286115,91398.0,91395.0,0.04575299]
[1767542748286,0.05470645,91397.0,91395.0,0.04575299]
[1767542748631,0.01094175,91393.0,91389.0,0.04703759]
[1767542748841,0.01094187,91392.0,91389.0,0.04703759]
[1767542749226,0.01094175,91393.0,91387.0,0.0475544]
[1767542749447,0.01094163,91394.0,91387.0,0.04703759]
[1767542749673,0.05470818,91394.0,91393.0,0.04703759]
[1767542749884,0.06565025,91395.0,91393.0,0.04603759]
[1767542750597,0.06564844,91396.0,91393.0,0.04603759]
[1767542750806,0.01094139,91396.0,91393.0,0.04603759]
[1767542751020,0.01094127,91397.0,91396.0,0.001]
[1767542751223,0.01094139,91396.0,91393.0,0.04603759]
[1767542751444,0.06564766,91397.0,91393.0,0.04603759]
[1767542751775,0.01094127,91397.0,91393.0,0.04603759]
[1767542752236,0.01094139,91396.0,91393.0,0.04603759]
[1767542752455,0.02192,91399.0,91397.0,0.04803759]
[1767542752672,0.03286103,91399.0,91388.0,0.01094235]
[1767542752874,0.01094151,91395.0,91389.0,0.34238161]
[1767542753079,0.01094151,91395.0,91388.0,0.01094235]
[1767542753080,0.01094163,91394.0,91388.0,0.01094235]
[1767542753289,0.01094127,91397.0,91390.0,0.05471041]
[1767542753509,0.06564706,91398.0,91391.0,0.01094199]
[1767542753919,0.01094115,91398.0,91390.0,0.01094211]
[1767542754126,0.01094139,91396.0,91390.0,0.01094211]
[1767542754339,0.01094115,91398.0,91392.0,0.01094187]
[1767542754541,0.01094115,91398.0,91391.0,0.05470997]
[1767542754753,0.01094127,91397.0,91391.0,0.01094199]
[1767542755160,0.01094127,91397.0,91390.0,0.06565214]
[1767542755161,0.0656477,91397.0,91393.0,0.00048803]
[1767542755311,0.0656477,91397.0,91393.0,3e-08]
[1767542755312,0.01094139,91396.0,91393.0,3e-08]
[1767542755547,0.05470778,91395.0,91393.0,3e-08]
[1767542755700,0.06564854,91396.0,91393.0,3e-08]
[1767542755909,0.05470818,91394.0,91393.0,3e-08]
[1767542756119,0.01094187,91392.0,91385.0,0.01094271]
[1767542756325,0.06565178,91392.0,91384.0,0.01094283]
[1767542756527,0.01094211,91390.0,91384.0,0.01094283]
[1767542756738,0.0547112,91389.0,91382.0,0.05798066]
[1767542756947,0.01094187,91392.0,91382.0,0.05798066]
[1767542756948,0.06565174,91392.0,91389.0,0.000488]
[1767542757204,0.05471058,91390.0,91389.0,0.000488]
[1767542757444,0.01094223,91389.0,91383.0,0.01094295]
[1767542757652,0.04665737,91388.0,91382.0,0.06565789]
[1767542757875,0.01094235,91388.0,91384.0,0.01043083]
[1767542758131,0.21883598,91393.0,91367.0,0.01094487]
[1767542758132,0.01094379,91376.0,91367.0,0.01094487]
[1767542758344,0.01094391,91375.0,91368.0,0.04703759]
[1767542758558,0.06566385,91375.0,91368.0,0.04703759]
[1767542758767,0.01094403,91374.0,91373.0,0.04703759]
[1767542759201,0.06566397,91375.0,91373.0,0.04703759]
[1767542759412,0.01094511,91365.0,91362.0,0.04703759]
[1767542759627,0.08758871,91368.0,91362.0,0.04713611]
[1767542759842,0.02192,91368.0,91364.0,0.04703759]
[1767542760066,0.02192,91368.0,91366.0,0.04703759]
[1767542760285,0.01094307,91382.0,91378.0,0.04703759]
[1767542760495,0.01094235,91388.0,91378.0,0.05798114]
[1767542760703,0.02192,91382.0,91381.0,0.04598859]
[1767542761358,0.02192,91383.0,91381.0,0.05693178]
[1767542761572,0.07663481,91383.0,91376.0,0.05693238]
[1767542761796,0.01094391,91375.0,91367.0,0.02192]
[1767542762055,0.01094499,91366.0,91362.0,0.04608711]
[1767542762478,0.01094451,91370.0,91364.0,0.01094523]
[1767542762622,0.21887107,91378.0,91362.0,9.852e-05]
[1767542762623,0.01094511,91365.0,91362.0,9.852e-05]
[1767542762829,0.05572615,91364.0,91360.0,0.0001512]
[1767542763008,0.05572615,91364.0,91351.0,0.04598859]
[1767542763009,0.01094642,91354.0,91351.0,0.04598859]
[1767542763208,0.00251901,91356.0,91351.0,0.04598859]
[1767542763435,0.00231902,91356.0,91351.0,0.05693537]
[1767542763775,0.00129937,91356.0,91353.0,0.05693513]
[1767542764069,0.01094534,91363.0,91354.0,0.01094642]
[1767542764070,0.06567338,91362.0,91354.0,0.01094642]
[1767542764214,0.01094582,91359.0,91353.0,0.01094654]
[1767542764595,0.01094582,91359.0,91351.0,0.06568038]
[1767542764800,0.01094558,91361.0,91345.0,0.00023022]
[1767542764801,0.05936428,91355.0,91345.0,0.00023022]
[1767542765007,0.01094714,91348.0,91345.0,0.00023022]
[1767542765209,0.05473692,91347.0,91345.0,0.00023022]
[1767542765417,0.04841798,91346.0,91345.0,0.00023022]
[1767542765655,0.04841798,91343.0,91342.0,0.0001512]
[1767542765812,0.10315671,91343.0,91342.0,0.0001512]
[1767542766253,0.01094798,91341.0,91333.0,0.34238161]
[1767542766570,0.02192,91360.0,91351.0,0.01094678]
[1767542766770,0.02192,91360.0,91352.0,0.01094666]
[1767542767099,0.02192,91360.0,91355.0,0.10072013]
[1767542767315,0.0012258,91359.0,91354.0,0.01094642]
[1767542767502,0.01094594,91358.0,91349.0,0.34238161]
[1767542767799,0.01094594,91358.0,91349.0,0.0656817]
[1767542768000,0.01094582,91359.0,91351.0,0.01094678]
[1767542768205,0.01094594,91358.0,91351.0,0.01094678]
[1767542768447,0.0329057,91360.0,91353.0,0.01094654]
[1767542768668,0.0329057,91360.0,91349.0,0.35332863]
[1767542768669,0.01094858,91336.0,91321.0,0.01095038]
[1767542768812,0.01094858,91336.0,91288.0,1.09557976]
[1767542768813,0.0109493,91330.0,91324.0,0.04613979]
[1767542768993,0.05474952,91325.0,91324.0,0.04613979]
[1767542769596,0.06569841,91327.0,91324.0,0.04513979]
[1767542769966,0.05474905,91326.0,91324.0,0.04513979]
[1767542770113,0.06569841,91327.0,91324.0,0.04513979]
[1767542770483,0.06469841,91327.0,91324.0,0.04513979]
[1767542770685,0.05474905,91326.0,91324.0,0.04513979]
[1767542770880,0.01095002,91324.0,91318.0,0.04598859]
[1767542771636,0.06570026,91324.0,91318.0,0.04598859]
[1767542771797,0.01095002,91324.0,91318.0,0.04598859]
[1767542771994,0.01095014,91323.0,91318.0,0.04598859]
[1767542772425,0.05475099,91323.0,91318.0,0.04598859]
[1767542772619,0.01095026,91322.0,91318.0,0.04598859]
[1767542772827,0.01095014,91323.0,91318.0,0.04598859]
[1767542773167,0.01095014,91323.0,91313.0,0.04598859]
[1767542773168,0.0109505,91320.0,91313.0,0.04598859]
[1767542773376,0.02196,91325.0,91308.0,0.05694053]
[1767542773582,0.001,91313.0,91308.0,0.05694053]
[1767542773714,0.02196,91325.0,91310.0,0.0109517]
[1767542773917,0.06570251,91321.0,91313.0,0.01095134]
[1767542774123,0.01095014,91323.0,91321.0,0.001]
[1767542774334,0.0329099,91325.0,91321.0,0.001]
[1767542774569,0.0109493,91330.0,91318.0,0.01095074]
[1767542774737,0.01094954,91328.0,91325.0,0.01]
[1767542775093,0.02196,91329.0,91325.0,0.05598859]
[1767542775304,0.02196,91329.0,91328.0,0.04698859]
[1767542775523,0.10699654,91328.0,91324.0,0.06570003]
[1767542775744,0.10699654,91328.0,91325.0,0.04598859]
[1767542775962,0.10699654,91328.0,91325.0,0.05693849]
[1767542776538,0.10692789,91328.0,91326.0,0.04598859]
[1767542776739,0.09438417,91328.0,91327.0,0.10073691]
[1767542777362,0.0109475,91345.0,91336.0,0.04598859]
[1767542777648,0.06568576,91344.0,91338.0,0.04598859]
[1767542778177,0.01094774,91343.0,91338.0,0.04598859]
[1767542778378,0.01094798,91341.0,91338.0,0.04498859]
[1767542778602,0.0109487,91335.0,91330.0,0.04598859]
[1767542778826,0.06569092,91337.0,91329.0,0.01094942]
[1767542778987,0.01094846,91337.0,91329.0,0.01094942]
[1767542779200,0.06569088,91337.0,91329.0,0.01094942]
[1767542779457,0.0109487,91335.0,91326.0,0.01094978]
[1767542779633,0.01094882,91334.0,91327.0,0.01094966]
[1767542779835,0.04709648,91334.0,91328.0,0.05474772]
[1767542780010,0.04609648,91334.0,91330.0,0.06569579]
[1767542780224,0.0109481,91340.0,91332.0,0.04598859]
[1767542780548,0.0329081,91340.0,91333.0,0.04598859]
[1767542780754,0.0329081,91340.0,91333.0,0.05693753]
[1767542780950,0.02196,91340.0,91333.0,0.11168222]
[1767542781183,0.04609648,91339.0,91333.0,0.06569363]
[1767542781389,0.04609648,91339.0,91334.0,0.01094882]
[1767542781506,0.01094762,91344.0,91337.0,0.04598859]
[1767542781706,0.03290774,91343.0,91337.0,0.04598859]
[1767542782150,0.01094786,91342.0,91337.0,0.04598859]
[1767542782355,0.03290774,91343.0,91337.0,0.04598859]
[1767542782735,0.01094786,91342.0,91337.0,0.04598859]
[1767542782947,0.01094798,91341.0,91337.0,0.04598859]
[1767542783280,0.08764798,91341.0,91337.0,0.04598859]
[1767542783481,0.02196,91341.0,91337.0,0.04498859]
[1767542784429,0.06568886,91340.0,91337.0,0.03164487]
[1767542784685,0.05474172,91338.0,91330.0,0.0109493]
[1767542784830,0.04841798,91337.0,91332.0,0.01094906]
[1767542785268,0.04841798,91337.0,91333.0,0.01094894]
[1767542785479,0.04841798,91337.0,91332.0,0.06569436]
[1767542786051,0.04841798,91337.0,91329.0,0.01094942]
[1767542786052,0.04841798,91337.0,91329.0,0.06569653]
[1767542786266,0.0104402,91335.0,91329.0,0.06569653]
[1767542786465,0.0104402,91335.0,91328.0,0.06569722]
[1767542786664,0.0104402,91335.0,91328.0,0.01094954]
[1767542786867,0.0104402,91335.0,91329.0,0.01094942]
[1767542787108,0.0104402,91334.0,91329.0,0.01094942]
[1767542787490,0.01094834,91338.0,91331.0,0.01094918]
[1767542787701,0.0109487,91335.0,91328.0,0.01094954]
[1767542787896,0.0104402,91335.0,91330.0,0.0109493]
[1767542788438,0.0104402,91335.0,91329.0,0.06569599]
[1767542788647,0.0104402,91335.0,91330.0,0.0109493]
[1767542788943,0.0104402,91334.0,91330.0,0.0109493]
[1767542789150,0.0104402,91334.0,91327.0,0.01094966]
[1767542789376,0.0104402,91330.0,91326.0,0.00010789]
[1767542789566,0.0104402,91330.0,91326.0,0.01105767]
[1767542789692,0.03290894,91333.0,91326.0,0.00010789]
[1767542789896,0.08765415,91333.0,91326.0,0.01105767]
[1767542790114,0.01094906,91332.0,91326.0,0.00010789]
[1767542790350,0.0656945,91332.0,91326.0,0.00010789]
[1767542790550,0.01094942,91329.0,91326.0,0.00010789]
[1767542790695,0.06569659,91329.0,91326.0,0.00010789]
[1767542790889,0.06569659,91329.0,91326.0,0.04684329]
[1767542791356,0.01094942,91329.0,91326.0,0.04684329]
[1767542791962,0.06569681,91329.0,91326.0,0.04684329]
[1767542792184,0.06569688,91329.0,91326.0,0.04684329]
[1767542792590,0.01094918,91331.0,91326.0,0.04684329]
[1767542793089,0.0656954,91331.0,91326.0,0.04684329]
[1767542793287,0.05474832,91327.0,91326.0,0.00010789]
[1767542793714,0.07570832,91327.0,91326.0,0.00010789]
[1767542793923,0.02196,91327.0,91326.0,0.00010789]
[1767542794091,0.02196,91327.0,91326.0,0.04699437]
[1767542794270,0.02196,91327.0,91326.0,0.00010789]
[1767542796904,0.06569697,91329.0,91326.0,0.00010789]